[Event "Singapore Open-A 2024"]
[Site "Singapore"]
[Date "2024.11.30"]
[Round "2.1"]
[White "Murzin, Volodar"]
[Black "Banh Gia Huy"]
[Result "1-0"]
[ECO "B22"]
[WhiteElo "2664"]
[BlackElo "2422"]
[Annotator "TA"]
[PlyCount "121"]
[EventDate "2024.11.29"]
[EventType "swiss"]
[EventCountry "SIN"]
[SourceTitle "playchess.com"]
[Source "ChessBase"]
[SourceQuality "1"]
[TimeControl "5400+30"]

{[%evp 32,121,6,8,10,6,18,11,0,11,0,0,0,0,0,0,0,0,14,19,14,6,18,5,22,17,33,22,42,56,56,65,45,47,87,79,93,88,102,102,102,102,102,93,88,98,111,98,151,126,154,145,162,152,172,174,221,206,256,253,239,175,181,174,196,192,178,158,310,296,308,301,327,331,634,634,634,615,594,548,557,536,29967,29969,29971,29973,29973,4207,29970,29970,11439,9171]} 1. e4 {[%emt 0:04:21]} c5 {[%emt 0:00:09]} 2. Nf3 {[%emt 0:00:23]} e6 {[%emt 0:00:03]} 3. c3 {[%emt 0:22:05]} Nf6 {[%emt 0:02:40]} 4. e5 {[%emt 0:01:44]} Nd5 {[%emt 0:00:02]} 5. d4 {[%emt 0:00:25]} cxd4 {[%emt 0:00:12]} 6. cxd4 {[%emt 0:00:06]} d6 {[%emt 0:00:03]} 7. Bc4 {[%emt 0:00:23]} Be7 {[%emt 0:00:51] is cutting edge theory.} 8. O-O {[%emt 0:00:35] B22: Sicilian: 2 c3.} O-O {[%emt 0:00:03]} 9. Qe2 {[%emt 0:01:43]} b6 {[%emt 0:02:11]} 10. Rd1 {[%emt 0:00:52]} Bb7 {[%emt 0:01:36]} 11. Bxd5 {[%emt 0:01:02]} exd5 {[%emt 0:02:10]} 12. Nc3 {[%emt 0:03:59]} Na6 {[%emt 0:02:59]} 13. Bf4 {[%emt 0:09:25]} Nc7 {[%emt 0:06:36]} 14. exd6 {[%emt 0:11:42]} Bxd6 {[%emt 0:00:04]} 15. Bxd6 {[%emt 0:00:13]} Qxd6 {[%emt 0:00:02]} 16. Re1 {[%emt 0:00:38]} Rfe8 $146 {[%emt 0:08:05]} ({Predecessor:} 16... Rae8 17. Qd2 f6 18. Rxe8 Rxe8 19. Ne1 Bc6 20. Nc2 Ne6 21. Re1 Kf7 22. a3 a5 {1-0 Pridorozhni,A (2556)-Matlakov,M (2696) RUS-ch Higher League 68th 2015 (1)}) 17. Qd2 {[%emt 0:10:14]} f6 {[%emt 0:04:49]} 18. h3 {[%emt 0:08:04]} Bc6 {[%emt 0:06:45]} 19. Nh2 {[%emt 0:05:45]} Rxe1+ {[%emt 0:08:13]} 20. Rxe1 {[%emt 0:00:02]} Re8 {[%emt 0:00:10]} 21. Rc1 {[%emt 0:03:44]} Ne6 {[%emt 0:03:45]} 22. Nf1 {[%emt 0:01:04]} Qf4 {[%emt 0:03:32]} 23. Qxf4 {[%emt 0:01:34]} Nxf4 {[%emt 0:00:02]} 24. Ne3 {[%emt 0:00:11]} Rd8 {[%emt 0:04:07]} 25. h4 {[%emt 0:04:14]} h5 {[%emt 0:03:44]} 26. Rd1 {[%emt 0:01:58]} Kf7 {[%emt 0:03:44]} 27. f3 {[%emt 0:01:37]} Ne6 {[%emt 0:03:13]} 28. Kf2 {[%emt 0:00:12]} g6 {[%emt 0:03:55]} 29. g3 {[%emt 0:01:40]} g5 {[%emt 0:11:10]} 30. Nf5 {[%emt 0:01:24]} Ng7 {[%emt 0:01:47]} 31. Nxg7 {[%emt 0:00:46]} Kxg7 {[%emt 0:00:01]} 32. Rc1 {[%emt 0:00:33]} Be8 {[%emt 0:08:07]} 33. Nd1 {[%emt 0:01:39]} Rd7 {[%emt 0:00:42]} 34. Ne3 {[%emt 0:00:09]} Bg6 {[%emt 0:00:09]} 35. Ke2 {[%emt 0:00:49]} Kf7 {[%emt 0:00:14]} 36. Rc6 {[%emt 0:00:46]} Bb1 {[%emt 0:01:59]} 37. a3 {[%emt 0:00:11]} Bg6 {[%emt 0:00:31]} 38. Kd2 {[%emt 0:00:30]} Bb1 {[%emt 0:00:18]} 39. a4 {[%emt 0:01:58]} Bg6 {[%emt 0:00:25] [#]} ({Better is} 39... Ba2) 40. b4 $1 $16 {[%emt 0:00:06]} Bb1 {[%emt 0:00:26]} 41. a5 {[%emt 0:01:04]} bxa5 {[%emt 0:00:43]} 42. bxa5 {[%emt 0:00:01]} gxh4 {[%emt 0:01:37]} 43. gxh4 {[%emt 0:00:02]} Ba2 {[%emt 0:00:11]} (43... Kg6 $142 44. Rc1 Ba2 45. Rg1+ Kf7) 44. Ng2 $18 {[%emt 0:01:38]} Rb7 {[%emt 0:00:48]} 45. Nf4 {[%emt 0:00:18]} Bc4 {[%emt 0:01:50]} 46. Nxh5 {[%emt 0:00:38]} Rb3 {[%emt 0:00:55]} 47. Rxf6+ {[%emt 0:00:37]} Ke7 {[%emt 0:00:06]} 48. Rf5 {[%emt 0:00:39]} Rd3+ {[%emt 0:04:06]} 49. Kc2 {[%emt 0:00:14]} Ra3 $2 {[%emt 0:00:07]} (49... Rxd4 $16 {is a better defense.} 50. Nf4 Bb5) 50. Nf4 $18 {[%emt 0:00:05]} Rxa5 {[%emt 0:00:26]} 51. h5 {[%emt 0:00:31]} Ra2+ {[%emt 0:00:16]} 52. Kc3 {[%emt 0:00:05]} Rh2 $2 {[%emt 0:03:49]} (52... Ra3+ 53. Kd2 Ra6) 53. Nxd5+ $18 {[%emt 0:00:19]} Bxd5 {[%emt 0:00:01]} 54. Rxd5 {[%emt 0:00:01]} Rh3 {[%emt 0:00:13]} 55. Ra5 {[%emt 0:00:21]} a6 {[%emt 0:00:42]} 56. Kc4 {[%emt 0:00:27]} (56. Rxa6 Rxh5 57. Ra1 Rf5 $18) 56... Rxf3 {[%emt 0:00:11]} 57. Rxa6 {[%emt 0:00:04]} Rh3 {[%emt 0:00:09]} 58. h6 {[%emt 0:01:54]} Kf7 {[%emt 0:00:06]} 59. Ra7+ {[%emt 0:00:27]} (59. d5 $142 Rh1 60. Ra7+ Kf6 61. Kd4 Rh4+ 62. Kc5 Rh3 63. h7 Rc3+ 64. Kd6) 59... Kg8 {[%emt 0:00:14]} 60. Ra8+ {[%emt 0:00:57]} Kh7 {[%emt 0:00:11]} 61. Ra6 {[%emt 0:01:52]} 1-0

[Event "Singapore Open-A 2024"]
[Site "Singapore"]
[Date "2024.11.30"]
[Round "2.2"]
[White "Indjic, Aleksandar"]
[Black "Dau Khuong Duy"]
[Result "1/2-1/2"]
[ECO "E62"]
[WhiteElo "2623"]
[BlackElo "2412"]
[Annotator "TA"]
[PlyCount "95"]
[EventDate "2024.11.29"]
[EventType "swiss"]
[EventCountry "SIN"]
[SourceTitle "playchess.com"]
[Source "ChessBase"]
[SourceQuality "1"]
[TimeControl "5400+30"]

{[%evp 13,95,40,40,38,51,58,55,47,56,27,33,40,95,89,96,94,101,69,86,45,39,30,23,30,27,33,67,41,52,51,56,58,51,27,0,0,0,0,0,0,0,0,0,0,0,0,7,0,37,0,0,0,0,0,0,3,5,0,0,0,0,-5,-8,-8,-8,-11,-11,-24,-25,-41,-54,-131,-48,-336,-321,-261,-120,-173,-204,-289,-8,-8,-8,-8]} 1. d4 {[%emt 0:04:26]} Nf6 {[%emt 0:00:19]} 2. c4 {[%emt 0:00:19]} g6 {[%emt 0:00:16]} 3. g3 {[%emt 0:00:23]} Bg7 {[%emt 0:00:29]} 4. Bg2 {[%emt 0:00:08]} O-O {[%emt 0:01:21]} 5. Nc3 {[%emt 0:00:07]} d6 {[%emt 0:00:39]} 6. Nf3 {[%emt 0:00:14]} c6 {[%emt 0:00:24]} 7. O-O {[%emt 0:01:08]} Bf5 {[%emt 0:00:34]} 8. Ng5 {[%emt 0:03:41]} h6 {[%emt 0:15:51]} 9. e4 {[%emt 0:00:22]} Bg4 {[%emt 0:00:18]} 10. Nf3 {[%emt 0:08:02] White is slightly better.} Nfd7 {[%emt 0:19:25]} 11. h3 {[%emt 0:07:54]} Bxf3 {[%emt 0:00:25]} 12. Bxf3 {[%emt 0:00:06]} Na6 {[%emt 0:04:39]} (12... Qb6 $14) 13. Be3 {[%emt 0:00:32]} Nc7 {[%emt 0:00:49]} 14. Qd2 {[%emt 0:00:33]} Kh7 {[%emt 0:01:39]} 15. Be2 {[%emt 0:07:50] White is more active.} a6 {[%emt 0:05:49]} 16. c5 {[%emt 0:07:50]} dxc5 {[%emt 0:11:27]} 17. dxc5 {[%emt 0:00:13]} Ne6 {[%emt 0:01:07]} 18. Na4 {[%emt 0:01:03]} Qc7 {[%emt 0:02:11]} 19. Rad1 {[%emt 0:05:46]} Rfd8 {[%emt 0:03:05][%cal Od7c5]} 20. Qb4 {[%emt 0:00:50]} Nf6 {[%emt 0:08:54]} 21. f4 {[%emt 0:08:35]} Rxd1 {[%emt 0:06:34]} 22. Rxd1 {[%emt 0:00:33]} Rd8 {[%emt 0:01:04]} 23. Kg2 {[%emt 0:02:38]} Rxd1 {[%emt 0:02:44]} 24. Bxd1 {[%emt 0:00:05]} h5 {[%emt 0:00:40][%cal Oh5h4]} 25. h4 {[%emt 0:05:08]} Qd7 {[%emt 0:01:54]} 26. Be2 {[%emt 0:00:08]} Ng4 {[%emt 0:01:11]} 27. Bxg4 {[%emt 0:00:10]} hxg4 {[%emt 0:00:06]} 28. Qb3 {[%emt 0:00:25] Repels Qd1} Nc7 {[%emt 0:03:51]} 29. Nb6 {[%emt 0:00:37]} (29. Qxf7 $2 Qd3 30. Qb3 Qxe4+ 31. Kg1 Nd5 $19) 29... Qd8 {[%emt 0:01:56]} 30. Kf2 {[%emt 0:02:42][%cal Ob3c2]} f5 {[%emt 0:01:43]} 31. exf5 {[%emt 0:06:33]} (31. e5 {simplifies} Qg8 32. Qxg8+ Kxg8 33. Nc4) 31... gxf5 {[%emt 0:00:05]} 32. Ke2 {[%emt 0:00:06]} Qg8 {[%emt 0:01:14] Prevents Qf7} 33. Qxg8+ {[%emt 0:01:09]} Kxg8 $11 {[%emt 0:00:04][%mdl 4096] Endgame. KBN-KBN} 34. Nc4 {[%emt 0:00:51]} Nd5 {[%emt 0:01:07]} 35. a3 {[%emt 0:00:49]} Kf7 {[%emt 0:01:30]} 36. Kd3 {[%emt 0:00:32]} Nf6 {[%emt 0:00:58]} 37. Na5 {[%emt 0:05:43]} Ne4 {[%emt 0:00:20]} 38. Nxb7 {[%emt 0:00:16]} Bxb2 {[%emt 0:00:36]} 39. Nd8+ {[%emt 0:00:23]} Ke8 {[%emt 0:00:51]} 40. Nxc6 {[%emt 0:00:07] [#] Hoping for h5.} Bxa3 {[%emt 0:00:08]} 41. Kc4 {[%emt 0:03:36]} Nxg3 {[%emt 0:01:41]} 42. Nd4 {[%emt 0:00:05]} (42. Ne5 $1 $15) 42... Bb2 {[%emt 0:00:42]} (42... Kd7 $17 {Threatens to win with ...Bb2.} 43. Bf2 (43. Kd5 Bb2 $17) 43... Ne4) 43. Ne6 $2 {[%emt 0:02:17][%mdl 8192]} (43. c6 $15) 43... Kd7 $19 {[%emt 0:00:27]} 44. Kd5 {[%emt 0:00:07]} Ne4 {[%emt 0:00:41]} (44... a5 $19 {is more deadly. ...a4 would now be deadly.} 45. c6+ Kc8) 45. c6+ {[%emt 0:00:17]} (45. Nf8+ $17 Kc7 46. Ne6+ (46. Ke6 $2 a5 $19) 46... Kc8 47. Kc6) 45... Kc8 {[%emt 0:00:05]} 46. Nd4 {[%emt 0:00:21] [#]} (46. Kc4 {keeps fighting.} Nf6 47. Bc5) 46... Bxd4 $2 {[%emt 0:00:18]} ({Better is} 46... Nf6+ $1 $19 47. Ke6 Kc7 48. Nxf5 (48. Kxf5 $2 {loses.} a5 $19) 48... Kxc6 49. Nxe7+ (49. Kxe7 $2 {too greedy.} Kd5 $19) 49... Kb5) 47. Bxd4 $11 {[%emt 0:00:08] h5 is the strong threat.} Ng3 {[%emt 0:00:07] Strongly threatening ...a5.} 48. Bb6 $1 {[%emt 0:00:12] Weighted Error Value: White=0.27 (precise) /Black=0.16 (very precise) .  Loses game:     	White=1     	---        Missed win:     	---       	Black=1      Mistake:       	White=3     	Black=3      Inaccurate:     	White=5     	Black=2      OK:         	White=12    	Black=16     Best:        	---       	Black=7      Strong:       	White=1     	---} 1/2-1/2

[Event "Singapore Open-A 2024"]
[Site "Singapore"]
[Date "2024.11.30"]
[Round "2.3"]
[White "Karthik Venkataraman"]
[Black "Deepan Chakkravarthy J."]
[Result "1/2-1/2"]
[ECO "B90"]
[WhiteElo "2605"]
[BlackElo "2408"]
[Annotator "TA"]
[PlyCount "117"]
[EventDate "2024.11.29"]
[EventType "swiss"]
[EventCountry "SIN"]
[SourceTitle "playchess.com"]
[Source "ChessBase"]
[SourceQuality "1"]
[TimeControl "5400+30"]

{[%evp 30,117,16,10,14,11,41,0,0,0,0,0,0,0,0,0,52,74,37,61,54,29,30,6,0,0,0,-25,-16,-33,0,-24,0,0,0,0,0,0,0,-74,-79,-89,-88,-106,-97,-91,0,0,0,0,0,0,364,393,394,392,380,389,383,383,490,486,521,521,595,472,521,464,511,29,71,59,128,115,205,215,192,8,9,8,79,8,8,8,8,8,8,8,8,8]} 1. e4 {[%emt 0:00:08]} c5 {[%emt 0:00:53]} 2. Nf3 {[%emt 0:00:09]} d6 {[%emt 0:01:43]} 3. d4 {[%emt 0:00:46]} cxd4 {[%emt 0:00:04]} 4. Nxd4 {[%emt 0:00:09]} Nf6 {[%emt 0:00:03]} 5. Nc3 {[%emt 0:00:07]} a6 {[%emt 0:00:08]} 6. Nb3 {[%emt 0:00:36]} e6 {[%emt 0:02:26] B90: Sicilian Najdorf: Unusual White 6th moves, 6 Be3 Ng4 and 6 Be3 e5.} 7. g4 {[%emt 0:00:25]} b5 {[%emt 0:01:09]} 8. a3 {[%emt 0:00:07]} Bb7 {[%emt 0:00:52]} 9. Qe2 {[%emt 0:00:15]} Nfd7 {[%emt 0:01:04]} 10. Bf4 {[%emt 0:01:18]} Nc6 {[%emt 0:03:21]} 11. O-O-O {[%emt 0:00:18]} Nce5 {[%emt 0:00:05]} 12. h4 {[%emt 0:02:14]} Rc8 {[%emt 0:03:42]} 13. Rh3 {[%emt 0:00:06]} Be7 {[%emt 0:12:32]} 14. g5 {[%emt 0:01:05]} O-O {[%emt 0:14:22]} 15. Bh2 $146 {[%emt 0:02:44]} ({Predecessor:} 15. Kb1 Nc4 16. h5 Bxg5 17. Bxd6 Nxd6 18. Rxd6 Qe7 19. Rd1 Bf6 20. Na2 Rc4 21. Nd2 {1-0 Komissarova,S (1859)-Potapova,M (2155) RUS-chT Rapid (Women) 2023 (9.18)}) 15... Qb6 {[%emt 0:01:55]} 16. f4 {[%emt 0:27:35]} Nc4 {[%emt 0:00:20]} 17. Rg3 {[%emt 0:00:10]} b4 {[%emt 0:14:10]} 18. axb4 {[%emt 0:14:30]} Qxb4 {[%emt 0:01:19]} 19. f5 {[%emt 0:02:08]} exf5 $1 {[%emt 0:11:51]} 20. exf5 {[%emt 0:00:26]} Rfe8 {[%emt 0:00:04]} 21. Qf2 {[%emt 0:01:24]} Bd8 {[%emt 0:05:11]} 22. Bxc4 {[%emt 0:13:36]} Rxc4 {[%emt 0:00:19]} (22... Qxc4 $11 23. Rgd3 Bb6) 23. Re3 $14 {[%emt 0:00:04]} Ne5 {[%emt 0:02:05]} 24. Bxe5 $1 {[%emt 0:01:00]} dxe5 {[%emt 0:00:02]} 25. Rxe5 {[%emt 0:00:08]} Rf8 $1 {[%emt 0:00:02]} (25... Bxg5+ $2 26. hxg5 Rb8 27. Qa7 $18) (25... Be7 $2 26. f6 $18) 26. f6 {[%emt 0:00:05]} Rf4 {[%emt 0:02:31]} 27. Qe1 {[%emt 0:09:19]} Rxh4 {[%emt 0:08:02]} 28. Re8 {[%emt 0:02:16]} Rh1 {[%emt 0:01:08]} 29. Qe5 {[%emt 0:07:22]} Rxd1+ {[%emt 0:04:53]} 30. Nxd1 {[%emt 0:00:03]} Bc6 {[%emt 0:04:15]} 31. Rxf8+ {[%emt 0:01:13]} Qxf8 {[%emt 0:00:03]} 32. Nd4 {[%emt 0:02:12]} Bd7 {[%emt 0:00:03]} 33. Qd5 {[%emt 0:02:40]} Qe8 {[%emt 0:00:03]} 34. fxg7 {[%emt 0:00:30]} (34. Qd6 $11) 34... Bg4 {[%emt 0:01:33]} ({Of course not} 34... Kxg7 35. Kb1 $11) 35. Kd2 {[%emt 0:05:34]} Qd7 {[%emt 0:00:39]} ({Much worse is} 35... Kxg7 $6 36. Ne3 Be6 37. Nxe6+ fxe6 38. Qd4+ Kg8 39. Qe5 $11) 36. Qc5 {[%emt 0:02:27]} Be7 {[%emt 0:02:13]} ({Reject} 36... Kxg7 $6 37. Ne3 $15) 37. Qe5 {[%emt 0:00:20]} Qd6 {[%emt 0:02:34]} (37... Bxg5+ $17 38. Kd3 Bxd1 39. Qxg5 Bxc2+ 40. Ke3 Qh3+ 41. Kf2 Qh2+ 42. Ke3 Bg6) 38. Qxd6 $11 {[%emt 0:00:38]} Bxd6 {[%emt 0:00:15]} 39. Nf2 {[%emt 0:00:07]} Bf4+ {[%emt 0:01:23]} 40. Kd3 {[%emt 0:00:03]} Bd7 $2 {[%emt 0:00:30][%mdl 8192]} (40... Bc8 $11) 41. Ne4 $1 $18 {[%emt 0:00:43]} Kxg7 {[%emt 0:00:38]} 42. Nf6 $1 {[%emt 0:00:33]} Bb5+ {[%emt 0:00:25]} 43. Nxb5 {[%emt 0:00:09]} Bxg5 {[%emt 0:00:08]} 44. Ne4 {[%emt 0:00:09]} Bc1 {[%emt 0:00:24]} 45. Nbd6 {[%emt 0:03:31]} Bxb2 {[%emt 0:00:05]} 46. c4 {[%emt 0:00:21]} Ba3 {[%emt 0:00:10]} 47. Kc3 {[%emt 0:01:15]} a5 {[%emt 0:00:01]} 48. Kd4 {[%emt 0:00:57]} h5 {[%emt 0:00:11]} 49. Ke5 $2 {[%emt 0:00:27]} (49. Nf5+ $18 Kg8 50. c5 Bxc5+ 51. Kxc5) 49... a4 {[%emt 0:00:41]} 50. Nf5+ {[%emt 0:00:25]} Kf8 {[%emt 0:00:21]} ({Black should try} 50... Kg6 $14) 51. Kd4 {[%emt 0:00:36]} Bb4 {[%emt 0:01:00] [#]} (51... Bb2+ $16 52. Kd3 f6) 52. Kd3 $1 $18 {[%emt 0:00:17]} Be1 {[%emt 0:01:35] [#]} 53. c5 $2 {[%emt 0:00:43]} (53. Ng5 $1 $18) 53... Ke8 $1 $11 {[%emt 0:00:10]} 54. Kc4 {[%emt 0:00:34]} Kd8 {[%emt 0:01:08]} (54... h4 $1 $11 {remains equal.}) 55. Ned6 {[%emt 0:00:23]} (55. Nd4 $16) 55... h4 $11 {[%emt 0:00:12]} 56. Nxf7+ {[%emt 0:00:13]} Kc7 {[%emt 0:00:02]} 57. Ng5 {[%emt 0:00:17]} a3 {[%emt 0:00:06]} 58. Kb3 {[%emt 0:01:08]} Kc6 {[%emt 0:01:07]} 59. Kxa3 {[%emt 0:00:28]} 1/2-1/2

[Event "Singapore Open-A 2024"]
[Site "Singapore"]
[Date "2024.11.30"]
[Round "2.4"]
[White "Injac, Teodora"]
[Black "Nesterov, Arseniy"]
[Result "1/2-1/2"]
[ECO "A08"]
[WhiteElo "2429"]
[BlackElo "2599"]
[Annotator "TA"]
[PlyCount "71"]
[EventDate "2024.11.29"]
[EventType "swiss"]
[EventCountry "SIN"]
[SourceTitle "playchess.com"]
[Source "ChessBase"]
[SourceQuality "1"]
[TimeControl "5400+30"]

{[%evp 9,71,0,-4,-7,0,-11,2,0,0,-2,8,0,0,0,0,0,14,17,15,-2,18,21,16,4,38,6,16,6,11,10,20,0,9,0,14,0,0,0,0,0,0,0,0,0,0,0,0,0,0,-14,-12,-45,-26,-18,-8,-8,0,0,0,-16,0,0,0,0]} 1. Nf3 {[%emt 0:00:04]} d5 {[%emt 0:02:59]} 2. g3 {[%emt 0:00:20]} Nf6 {[%emt 0:00:11]} 3. Bg2 {[%emt 0:00:06]} c5 {[%emt 0:00:14]} 4. O-O {[%emt 0:00:31]} e6 {[%emt 0:00:06]} 5. d3 {[%emt 0:00:36]} Nc6 {[%emt 0:00:28]} 6. a4 {[%emt 0:00:51]} Be7 {[%emt 0:00:45]} 7. Bf4 {[%emt 0:01:00]} O-O {[%emt 0:01:32]} 8. Ne5 {[%emt 0:00:32]} Nxe5 {[%emt 0:04:58]} 9. Bxe5 {[%emt 0:00:04]} Bd7 {[%emt 0:01:46]} 10. e4 {[%emt 0:01:34]} Bc6 {[%emt 0:00:25][%cal Rd5e4]} 11. Qe2 {[%emt 0:05:25]} Re8 {[%emt 1:22:36]} 12. c4 {[%emt 0:10:50]} dxe4 {[%emt 0:00:00]} 13. dxe4 {[%emt 0:00:13]} Nd7 {[%emt 0:00:00][%cal Bf6d7,Bd7f8,Bf8e6,Be6d4][%mdl 32]} 14. Bf4 {[%emt 0:11:46]} e5 {[%emt 0:00:00]} 15. Be3 {[%emt 0:00:47]} Nf8 {[%emt 0:00:00]} 16. Rd1 {[%emt 0:01:39]} Qa5 {[%emt 0:00:00][%cal Oa8d8]} 17. Nc3 {[%emt 0:15:23]} Ne6 {[%emt 0:00:00]} 18. Nd5 {[%emt 0:00:54]} Nd4 {[%emt 0:00:00]} 19. Qd3 {[%emt 0:05:56]} Qd8 {[%emt 0:00:00]} 20. h4 {[%emt 0:05:44]} a5 {[%emt 0:00:00]} 21. b3 {[%emt 0:08:15]} h6 {[%emt 0:00:00]} 22. Rd2 {[%emt 0:02:53]} (22. Bh3 {feels hotter.} Qd6 23. Kg2 Qg6 24. Bf5) 22... Ra6 {[%emt 0:00:00]} 23. Bxd4 {[%emt 0:12:00]} cxd4 {[%emt 0:00:00]} 24. Bh3 {[%emt 0:02:42]} Bd6 {[%emt 0:00:00]} 25. Rc2 {[%emt 0:01:26]} Bc5 {[%emt 0:00:00]} 26. Rd1 {[%emt 0:00:28]} b6 {[%emt 0:00:00]} 27. Kh2 {[%emt 0:00:22]} Ra7 {[%emt 0:00:00]} 28. Re2 {[%emt 0:00:18]} Bd6 {[%emt 0:00:00]} 29. Qf3 {[%emt 0:00:49]} Rf8 {[%emt 0:00:00]} 30. h5 {[%emt 0:01:30]} Kh8 {[%emt 0:00:00]} 31. Kg2 {[%emt 0:01:28]} Rb7 {[%emt 0:00:00] The position is equal.} 32. Rh1 {[%emt 0:01:15]} Qg5 {[%emt 0:00:00]} 33. Qf5 {[%emt 0:01:03]} Qd8 {[%emt 0:00:00]} 34. Qf3 {[%emt 0:00:12]} Qg5 {[%emt 0:00:00]} 35. Qf5 {[%emt 0:00:04]} Qd8 {[%emt 0:00:00]} 36. Qf3 {[%emt 0:01:20] An uneventful encounter.   Weighted Error Value: White=0.06 (flawless) /Black=0.06 (flawless) .  Inaccurate:     	White=2     	Black=1      OK:         	White=13    	Black=8} 1/2-1/2

[Event "Singapore Open-A 2024"]
[Site "Singapore"]
[Date "2024.11.30"]
[Round "2.5"]
[White "Dimakiling, Oliver"]
[Black "Tin, Jingyao"]
[Result "0-1"]
[ECO "A06"]
[WhiteElo "2422"]
[BlackElo "2588"]
[Annotator "RC"]
[PlyCount "156"]
[EventDate "2024.11.29"]
[EventType "swiss"]
[EventCountry "SIN"]
[SourceTitle "playchess.com"]
[Source "ChessBase"]
[SourceQuality "1"]
[TimeControl "5400+30"]

1. Nf3 {[%emt 0:00:04]} d5 {[%emt 0:04:56]} 2. b3 {[%emt 0:00:17]} Nf6 {[%emt 0:02:12]} 3. Bb2 {[%emt 0:00:22]} Bf5 {[%emt 0:00:17]} 4. g3 {[%emt 0:01:18]} e6 {[%emt 0:00:37]} 5. Nh4 {[%emt 0:01:32]} Bg4 {[%emt 0:06:14]} 6. h3 {[%emt 0:00:17]} Bh5 {[%emt 0:00:08]} 7. g4 {[%emt 0:00:19]} Nfd7 {[%emt 0:01:56]} 8. Nf5 {[%emt 0:01:43]} exf5 {[%emt 0:01:31]} 9. gxh5 {[%emt 0:00:05]} Qh4 {[%emt 0:02:01]} 10. Bg2 {[%emt 0:06:21]} c6 {[%emt 0:04:26]} 11. e3 {[%emt 0:06:34]} Rg8 {[%emt 0:08:44]} 12. Qf3 {[%emt 0:02:43]} g6 {[%emt 0:01:32]} 13. hxg6 {[%emt 0:00:10]} hxg6 {[%emt 0:00:44]} 14. Nc3 {[%emt 0:00:29]} Nf6 {[%emt 0:01:53]} 15. O-O-O {[%emt 0:07:13]} Nbd7 {[%emt 0:01:02]} 16. Kb1 {[%emt 0:04:10]} O-O-O {[%emt 0:06:02]} 17. d3 {[%emt 0:02:58]} Bd6 {[%emt 0:09:17]} 18. Na4 {[%emt 0:22:20]} Be5 {[%emt 0:06:13]} 19. Bc1 {[%emt 0:05:44]} Qb4 {[%emt 0:06:40]} 20. Qe2 {[%emt 0:02:41]} Nb6 {[%emt 0:05:19]} 21. Bd2 {[%emt 0:07:54]} Qe7 {[%emt 0:03:00]} 22. Nxb6+ {[%emt 0:05:34]} axb6 {[%emt 0:00:02]} 23. Rc1 {[%emt 0:03:39]} Rge8 {[%emt 0:02:58]} 24. c3 {[%emt 0:01:46]} Bc7 {[%emt 0:02:47]} 25. Qd1 {[%emt 0:02:02]} Kb8 {[%emt 0:01:48]} 26. Rc2 {[%emt 0:00:07]} Rh8 {[%emt 0:02:31]} 27. Bc1 {[%emt 0:00:24]} Rh4 {[%emt 0:04:10]} 28. Re2 {[%emt 0:01:43]} Nd7 {[%emt 0:01:31]} 29. Qc2 {[%emt 0:00:30]} Nc5 {[%emt 0:01:36]} 30. Rd1 {[%emt 0:00:32]} Qg5 {[%emt 0:01:53]} 31. f4 {[%emt 0:01:55]} Qe7 {[%emt 0:01:57]} 32. b4 {[%emt 0:03:44]} Ne6 {[%emt 0:01:09]} 33. a4 {[%emt 0:00:09]} Rhh8 {[%emt 0:00:58]} 34. Qa2 {[%emt 0:00:25]} Rhe8 {[%emt 0:03:23]} 35. Rb2 {[%emt 0:00:11]} Qd6 {[%emt 0:01:15]} 36. d4 {[%emt 0:03:59]} g5 {[%emt 0:01:13]} 37. c4 {[%emt 0:00:46]} dxc4 {[%emt 0:00:43]} 38. Qxc4 {[%emt 0:00:28]} gxf4 {[%emt 0:00:27]} 39. d5 {[%emt 0:01:43]} fxe3 {[%emt 0:00:53]} 40. Bxe3 {[%emt 0:00:54]} Qe5 {[%emt 0:00:48]} 41. Qb3 {[%emt 0:03:42]} f4 {[%emt 0:01:07]} 42. Bg1 {[%emt 0:01:09]} Ng5 {[%emt 0:01:03]} 43. a5 {[%emt 0:00:16]} b5 {[%emt 0:01:44]} 44. Ka2 {[%emt 0:00:42]} f3 {[%emt 0:01:09]} 45. Bxf3 {[%emt 0:00:19]} Nxf3 {[%emt 0:00:10]} 46. Qxf3 {[%emt 0:00:04]} Rxd5 {[%emt 0:00:55]} 47. Bh2 {[%emt 0:00:04]} Qe6 {[%emt 0:00:19]} 48. Bxc7+ {[%emt 0:00:30]} Kxc7 {[%emt 0:00:01]} 49. Rxd5 {[%emt 0:00:12]} cxd5 {[%emt 0:01:12]} 50. Rc2+ {[%emt 0:00:04]} Kb8 {[%emt 0:00:16]} 51. Qg3+ {[%emt 0:00:36]} Ka8 {[%emt 0:00:05]} 52. Qd3 {[%emt 0:02:09]} Rh8 {[%emt 0:00:25]} 53. Re2 {[%emt 0:00:41]} Qd7 {[%emt 0:00:22]} 54. Re5 {[%emt 0:00:24]} Rxh3 {[%emt 0:01:00]} 55. Qxd5 {[%emt 0:00:14]} Qc8 {[%emt 0:00:36]} 56. Qc5 {[%emt 0:00:20]} Qg8 {[%emt 0:00:36]} 57. Re3 {[%emt 0:00:53]} f5+ {[%emt 0:00:38]} 58. Ka3 {[%emt 0:00:06]} Rxe3+ {[%emt 0:00:32]} 59. Qxe3 {[%emt 0:00:04]} Qd8 {[%emt 0:00:31]} 60. Qf3 {[%emt 0:00:20]} Qf6 {[%emt 0:00:14]} 61. Qd3 {[%emt 0:01:06]} Qa1+ {[%emt 0:00:15]} 62. Kb3 {[%emt 0:00:10]} Qa4+ {[%emt 0:00:04]} 63. Kc3 {[%emt 0:00:26]} Qa3+ {[%emt 0:00:49]} 64. Kc2 {[%emt 0:00:03]} Qxd3+ {[%emt 0:00:58]} 65. Kxd3 {[%emt 0:00:04]} Kb8 {[%emt 0:00:09]} 66. Kd4 {[%emt 0:00:04]} Kc7 {[%emt 0:00:04]} 67. Kd5 {[%emt 0:02:54]} f4 {[%emt 0:00:34]} 68. Ke4 {[%emt 0:00:03]} Kd6 {[%emt 0:00:05]} 69. Kxf4 {[%emt 0:00:06]} Kd5 {[%emt 0:00:03]} 70. Ke3 {[%emt 0:00:14]} Kc4 {[%emt 0:00:04]} 71. Kd2 {[%emt 0:00:05]} Kxb4 {[%emt 0:00:03]} 72. Kc2 {[%emt 0:00:05]} Kxa5 {[%emt 0:00:17]} 73. Kb3 {[%emt 0:00:07]} b4 {[%emt 0:00:04]} 74. Kb2 {[%emt 0:00:04]} Ka4 {[%emt 0:00:04]} 75. Ka2 {[%emt 0:00:03]} b3+ {[%emt 0:00:04]} 76. Kb2 {[%emt 0:00:04]} Kb4 {[%emt 0:00:02]} 77. Kb1 {[%emt 0:00:05]} Kc3 {[%emt 0:00:06]} 78. Kc1 {[%emt 0:00:03]} b2+ {[%emt 0:00:03]} 0-1